[Event "CCT Chessable Masters D-II 2024"]
[Site "Online"]
[Date "2024.02.04"]
[Round "3"]
[White "GMBenjaminBok"]
[Black "Keymer, Vincent"]
[Result "1/2-1/2"]
[ECO "E08"]
[WhiteElo "2672"]
[BlackElo "2743"]
[Annotator "TA"]
[PlyCount "29"]
[EventDate "2024.01.12"]
[EventType "k.o."]
[EventCountry "NET"]
[SourceTitle "playchess.com"]
[Source "ChessBase"]
[SourceQuality "1"]
[TimeControl "600+2"]

{[%evp 24,29,5,0,0,0,5,0]} 1. d4 {[%emt 0:00:02]} Nf6 {[%emt 0:00:02]} 2. c4 {[%emt 0:00:02]} e6 {[%emt 0:00:01]} 3. Nf3 {[%emt 0:00:04]} d5 {[%emt 0:00:02]} 4. g3 {[%emt 0:00:01]} Bb4+ {[%emt 0:00:00]} 5. Bd2 {[%emt 0:00:01]} Be7 {[%emt 0:00:01]} 6. Bg2 {[%emt 0:00:01]} O-O {[%emt 0:00:01]} 7. O-O {[%emt 0:00:01]} c6 {[%emt 0:00:00]} 8. Qc2 {[%emt 0:00:02]} Nbd7 {[%emt 0:00:01]} 9. Rd1 {[%emt 0:00:06]} b6 {[%emt 0:00:02]} 10. Bf4 {[%emt 0:00:03]} Bb7 {[%emt 0:00:12]} 11. Ne5 {[%emt 0:00:03]} Nh5 {[%emt 0:00:07]} 12. Bd2 {[%emt 0:00:02]} Nhf6 {[%emt 0:00:02]} 13. Bf4 {[%emt 0:00:24] The position is equal.} Nh5 {[%emt 0:00:17]} 14. Bd2 {[%emt 0:00:06]} Nhf6 {[%emt 0:00:01]} 15. Bf4 {[%emt 0:04:44] Not much happened in this game.   Weighted Error Value: White=0.02 (flawless) /Black=0.00 (flawless) .  OK:         	---       	Black=1} 1/2-1/2

[Event "CCT Chessable Masters D-II 2024"]
[Site "Online"]
[Date "2024.02.05"]
[Round "4"]
[White "LevonAronian"]
[Black "Keymer, Vincent"]
[Result "0-1"]
[ECO "C54"]
[WhiteElo "2777"]
[BlackElo "2743"]
[Annotator "RC"]
[PlyCount "114"]
[EventDate "2024.01.12"]
[EventType "k.o."]
[EventCountry "NET"]
[SourceTitle "playchess.com"]
[Source "ChessBase"]
[SourceQuality "1"]
[TimeControl "600+2"]

1. e4 {[%emt 0:00:02]} e5 {[%emt 0:00:04]} 2. Nf3 {[%emt 0:00:02]} Nc6 {[%emt 0:00:01]} 3. Bc4 {[%emt 0:00:03]} Nf6 {[%emt 0:00:01]} 4. d3 {[%emt 0:00:01]} Bc5 {[%emt 0:00:01]} 5. O-O {[%emt 0:00:04]} a6 {[%emt 0:00:01]} 6. c3 {[%emt 0:00:06]} Ba7 {[%emt 0:00:04]} 7. Re1 {[%emt 0:00:21]} O-O {[%emt 0:00:14]} 8. Nbd2 {[%emt 0:00:06]} d6 {[%emt 0:00:13]} 9. Nf1 {[%emt 0:00:02]} Ng4 {[%emt 0:00:14]} 10. Re2 {[%emt 0:00:06]} Na5 {[%emt 0:00:15]} 11. Bg5 {[%emt 0:00:33]} Qe8 {[%emt 0:00:43]} 12. h3 {[%emt 0:00:02]} Nxf2 {[%emt 0:00:19]} 13. Rxf2 {[%emt 0:00:04]} Bxf2+ {[%emt 0:00:01]} 14. Kxf2 {[%emt 0:00:00]} Nxc4 {[%emt 0:00:00]} 15. dxc4 {[%emt 0:00:01]} f5 {[%emt 0:00:01]} 16. exf5 {[%emt 0:00:51]} Bxf5 {[%emt 0:00:05]} 17. Kg1 {[%emt 0:00:08]} Qg6 {[%emt 0:00:03]} 18. Ng3 {[%emt 0:01:23]} Be6 {[%emt 0:01:22]} 19. h4 {[%emt 0:00:46]} Bxc4 {[%emt 0:00:38]} 20. h5 {[%emt 0:00:07]} Qd3 {[%emt 0:00:07]} 21. b3 {[%emt 0:00:32]} Qxd1+ {[%emt 0:00:13]} 22. Rxd1 {[%emt 0:00:00]} Be6 {[%emt 0:00:00]} 23. h6 {[%emt 0:00:30]} Bg4 {[%emt 0:00:06]} 24. Rd3 {[%emt 0:00:07]} gxh6 {[%emt 0:00:53]} 25. Bxh6 {[%emt 0:00:19]} Rf6 {[%emt 0:00:01]} 26. Nh2 {[%emt 0:00:12]} Bd7 {[%emt 0:00:35]} 27. Bd2 {[%emt 0:00:44]} Raf8 {[%emt 0:00:12]} 28. Rf3 {[%emt 0:00:50]} Rg6 {[%emt 0:00:43]} 29. Rxf8+ {[%emt 0:00:47]} Kxf8 {[%emt 0:00:00]} 30. Ngf1 {[%emt 0:00:01]} Bc6 {[%emt 0:00:39]} 31. Ne3 {[%emt 0:00:02]} Ke7 {[%emt 0:00:07]} 32. Kf2 {[%emt 0:00:04]} Ke6 {[%emt 0:00:06]} 33. g4 {[%emt 0:00:02]} Be4 {[%emt 0:00:14]} 34. a3 {[%emt 0:00:32]} d5 {[%emt 0:00:14]} 35. Nef1 {[%emt 0:00:03]} c5 {[%emt 0:00:29]} 36. g5 {[%emt 0:00:24]} d4 {[%emt 0:00:15]} 37. Ng3 {[%emt 0:00:28]} Bc2 {[%emt 0:00:28]} 38. b4 {[%emt 0:00:02]} e4 {[%emt 0:00:03]} 39. Bf4 {[%emt 0:00:14]} cxb4 {[%emt 0:00:30]} 40. axb4 {[%emt 0:00:01]} dxc3 {[%emt 0:00:06]} 41. Ne2 {[%emt 0:00:20]} Kd5 {[%emt 0:00:08]} 42. Ng4 {[%emt 0:00:01]} Bd3 {[%emt 0:00:16]} 43. Ne3+ {[%emt 0:00:10]} Kc6 {[%emt 0:00:11]} 44. Nxc3 {[%emt 0:00:01]} b6 {[%emt 0:00:07]} 45. Nf5 {[%emt 0:00:01]} Kd7 {[%emt 0:00:13]} 46. Ke3 {[%emt 0:00:01]} a5 {[%emt 0:00:02]} 47. bxa5 {[%emt 0:00:01]} bxa5 {[%emt 0:00:01]} 48. Nd4 {[%emt 0:00:01]} Ra6 {[%emt 0:00:10]} 49. Na4 {[%emt 0:00:01]} Ke8 {[%emt 0:00:04]} 50. Be5 {[%emt 0:00:13]} Kf7 {[%emt 0:00:03]} 51. Nc5 {[%emt 0:00:05]} Ra8 {[%emt 0:00:02]} 52. Nb5 {[%emt 0:00:05]} Bxb5 {[%emt 0:00:02]} 53. Nxe4 {[%emt 0:00:03]} Bc6 {[%emt 0:00:03]} 54. Nc5 {[%emt 0:00:03]} a4 {[%emt 0:00:01]} 55. Kf4 {[%emt 0:00:02]} a3 {[%emt 0:00:02]} 56. Kf5 {[%emt 0:00:02]} a2 {[%emt 0:00:01]} 57. Ba1 {[%emt 0:00:01]} Ra5 {[%emt 0:00:01]} 0-1

[Event "CCT Chessable Masters D-II 2024"]
[Site "Online"]
[Date "2024.02.05"]
[Round "4"]
[White "Keymer, Vincent"]
[Black "LevonAronian"]
[Result "1-0"]
[ECO "E61"]
[WhiteElo "2743"]
[BlackElo "2777"]
[Annotator "RC"]
[PlyCount "129"]
[EventDate "2024.01.12"]
[EventType "k.o."]
[EventCountry "NET"]
[SourceTitle "playchess.com"]
[Source "ChessBase"]
[SourceQuality "1"]
[TimeControl "600+2"]

1. d4 {[%emt 0:00:02]} Nf6 {[%emt 0:00:04]} 2. c4 {[%emt 0:00:01]} g6 {[%emt 0:00:01]} 3. g3 {[%emt 0:00:21]} Bg7 {[%emt 0:00:01]} 4. Bg2 {[%emt 0:00:01]} O-O {[%emt 0:00:01]} 5. Nc3 {[%emt 0:00:04]} Nc6 {[%emt 0:00:00]} 6. e3 {[%emt 0:00:35]} d6 {[%emt 0:00:06]} 7. Nge2 {[%emt 0:00:50]} e5 {[%emt 0:00:02]} 8. O-O {[%emt 0:00:33]} exd4 {[%emt 0:00:04]} 9. exd4 {[%emt 0:00:18]} Bd7 {[%emt 0:00:22]} 10. h3 {[%emt 0:00:15]} a6 {[%emt 0:00:03]} 11. Bg5 {[%emt 0:00:11]} h6 {[%emt 0:00:01]} 12. Be3 {[%emt 0:00:01]} Rb8 {[%emt 0:00:06]} 13. Qd2 {[%emt 0:00:20]} Kh7 {[%emt 0:00:02]} 14. Rac1 {[%emt 0:00:06]} Ne7 {[%emt 0:00:21]} 15. g4 {[%emt 0:01:28]} b5 {[%emt 0:00:03]} 16. b3 {[%emt 0:00:08]} b4 {[%emt 0:00:25]} 17. Nd1 {[%emt 0:00:08]} d5 {[%emt 0:00:16]} 18. Ng3 {[%emt 0:00:30]} Bc6 {[%emt 0:00:24]} 19. f3 {[%emt 0:00:52]} Nd7 {[%emt 0:02:26]} 20. Nf2 {[%emt 0:00:15]} Re8 {[%emt 0:00:14]} 21. Nd3 {[%emt 0:00:16]} a5 {[%emt 0:00:02]} 22. Bf2 {[%emt 0:00:38]} Nf8 {[%emt 0:00:28]} 23. Ne5 {[%emt 0:00:14]} dxc4 {[%emt 0:00:28]} 24. Nxc6 {[%emt 0:00:23]} c3 {[%emt 0:00:06]} 25. Nxd8 {[%emt 0:00:29]} cxd2 {[%emt 0:00:02]} 26. Rc4 {[%emt 0:00:19]} Rbxd8 {[%emt 0:00:16]} 27. Rd1 {[%emt 0:00:03]} Ne6 {[%emt 0:00:11]} 28. Rxd2 {[%emt 0:00:06]} c5 {[%emt 0:00:29]} 29. Ne2 {[%emt 0:00:15]} Rd7 {[%emt 0:00:53]} 30. f4 {[%emt 0:00:19]} Red8 {[%emt 0:00:17]} 31. d5 {[%emt 0:00:58]} Nxd5 {[%emt 0:00:12]} 32. f5 {[%emt 0:00:01]} gxf5 {[%emt 0:00:02]} 33. gxf5 {[%emt 0:00:00]} Nd4 {[%emt 0:00:01]} 34. Rxc5 {[%emt 0:00:01]} Nxe2+ {[%emt 0:00:24]} 35. Rxe2 {[%emt 0:00:01]} Nf4 {[%emt 0:00:01]} 36. Re4 {[%emt 0:00:09]} Rd1+ {[%emt 0:00:14]} 37. Kh2 {[%emt 0:00:01]} Nd3 {[%emt 0:01:11]} 38. Rc2 {[%emt 0:00:01]} Nxf2 {[%emt 0:00:09]} 39. Rxf2 {[%emt 0:00:00]} Bd4 {[%emt 0:00:01]} 40. Rfe2 {[%emt 0:00:06]} Bc5 {[%emt 0:00:28]} 41. h4 {[%emt 0:00:02]} Rg8 {[%emt 0:00:07]} 42. Re1 {[%emt 0:00:02]} Bd6+ {[%emt 0:00:12]} 43. Kh1 {[%emt 0:00:01]} Rd2 {[%emt 0:00:08]} 44. R1e2 {[%emt 0:00:01]} Rd1+ {[%emt 0:00:01]} 45. Re1 {[%emt 0:00:00]} Rxe1+ {[%emt 0:00:01]} 46. Rxe1 {[%emt 0:00:01]} Kg7 {[%emt 0:00:01]} 47. Rd1 {[%emt 0:00:03]} Bg3 {[%emt 0:00:03]} 48. Rd4 {[%emt 0:00:01]} Kf6 {[%emt 0:00:01]} 49. Bf3 {[%emt 0:00:01]} Rc8 {[%emt 0:00:03]} 50. Kg2 {[%emt 0:00:01]} Be5 {[%emt 0:00:01]} 51. Rc4 {[%emt 0:00:01]} Rxc4 {[%emt 0:00:04]} 52. bxc4 {[%emt 0:00:00]} a4 {[%emt 0:00:03]} 53. Be4 {[%emt 0:00:01]} Bd4 {[%emt 0:00:02]} 54. Bc2 {[%emt 0:00:01]} a3 {[%emt 0:00:03]} 55. Kf3 {[%emt 0:00:01]} Ke5 {[%emt 0:00:00]} 56. h5 {[%emt 0:00:02]} Bc5 {[%emt 0:00:02]} 57. Ke2 {[%emt 0:00:02]} Kd4 {[%emt 0:00:03]} 58. Bb3 {[%emt 0:00:01]} Be7 {[%emt 0:00:02]} 59. c5 {[%emt 0:00:03]} Bxc5 {[%emt 0:00:02]} 60. Bxf7 {[%emt 0:00:01]} Ke5 {[%emt 0:00:00]} 61. Be6 {[%emt 0:00:01]} b3 {[%emt 0:00:02]} 62. Bxb3 {[%emt 0:00:01]} Kxf5 {[%emt 0:00:00]} 63. Kd3 {[%emt 0:00:01]} Be7 {[%emt 0:00:02]} 64. Bd1 {[%emt 0:00:00]} Bf8 {[%emt 0:00:02]} 65. Kc4 {[%emt 0:00:01]} 1-0

[Event "CCT Chessable Masters D-II 2024"]
[Site "Online"]
[Date "2024.02.05"]
[Round "4"]
[White "Keymer, Vincent"]
[Black "LevonAronian"]
[Result "1/2-1/2"]
[ECO "E61"]
[WhiteElo "2743"]
[BlackElo "2777"]
[Annotator "TA"]
[PlyCount "129"]
[EventDate "2024.01.12"]
[EventType "k.o."]
[EventCountry "NET"]
[SourceTitle "playchess.com"]
[Source "ChessBase"]
[SourceQuality "1"]
[TimeControl "600+2"]

{[%evp 43,129,25,34,20,23,20,14,0,0,-34,-32,-32,-35,-71,-76,-90,-15,-14,0,-72,-62,-61,-71,-56,-72,-73,-71,-77,-78,-73,-73,-81,-75,-67,-69,-63,-73,-64,-31,-291,-88,-89,-75,-78,-78,-102,0,-78,-78,-74,-40,-37,-21,-74,-68,-85,-64,-60,-71,-206,-206,-209,-209,-204,-172,-122,-41,-75,0,-41,-41,-145,-41,-145,-41,-50,-50,-50,-50,-50,0,0,0,0,0,0,0,0]} 1. d4 {[%emt 0:00:02]} Nf6 {[%emt 0:00:04]} 2. c4 {[%emt 0:00:01]} g6 {[%emt 0:00:01]} 3. g3 {[%emt 0:00:21]} Bg7 {[%emt 0:00:01]} 4. Bg2 {[%emt 0:00:01]} O-O {[%emt 0:00:01]} 5. Nc3 {[%emt 0:00:04]} Nc6 {[%emt 0:00:00]} 6. e3 {[%emt 0:00:35]} d6 {[%emt 0:00:06]} 7. Nge2 {[%emt 0:00:50]} e5 {[%emt 0:00:02]} 8. O-O {[%emt 0:00:33]} exd4 {[%emt 0:00:04]} 9. exd4 {[%emt 0:00:18]} Bd7 {[%emt 0:00:22]} 10. h3 {[%emt 0:00:15]} a6 {[%emt 0:00:03]} 11. Bg5 {[%emt 0:00:11]} h6 {[%emt 0:00:01]} 12. Be3 {[%emt 0:00:01]} Rb8 {[%emt 0:00:06]} 13. Qd2 {[%emt 0:00:20]} Kh7 {[%emt 0:00:02]} 14. Rac1 {[%emt 0:00:06]} Ne7 {[%emt 0:00:21]} 15. g4 {[%emt 0:01:28]} b5 {[%emt 0:00:03]} 16. b3 {[%emt 0:00:08]} b4 {[%emt 0:00:25]} 17. Nd1 {[%emt 0:00:08]} d5 {[%emt 0:00:16]} 18. Ng3 {[%emt 0:00:30]} Bc6 {[%emt 0:00:24]} 19. f3 {[%emt 0:00:52]} Nd7 {[%emt 0:02:26]} 20. Nf2 {[%emt 0:00:15]} Re8 {[%emt 0:00:14]} 21. Nd3 {[%emt 0:00:16]} a5 {[%emt 0:00:02]} 22. Bf2 {[%emt 0:00:38]} Nf8 {[%emt 0:00:28]} 23. Ne5 {[%emt 0:00:14]} (23. Nf4 {simplifies} Kg8 24. Rfe1 Qd6 25. h4) 23... dxc4 {[%emt 0:00:28]} 24. Nxc6 {[%emt 0:00:23]} c3 $1 {[%emt 0:00:06]} 25. Nxd8 {[%emt 0:00:29]} (25. Qxc3 {simplifies} bxc3 26. Nxd8 Rbxd8 27. Rxc3 Nd5 28. Rc4) 25... cxd2 {[%emt 0:00:02]} 26. Rc4 {[%emt 0:00:19]} Rbxd8 {[%emt 0:00:16]} 27. Rd1 $1 {[%emt 0:00:03]} Ne6 {[%emt 0:00:11]} 28. Rxd2 {[%emt 0:00:06]} c5 {[%emt 0:00:29]} 29. Ne2 {[%emt 0:00:15]} Rd7 {[%emt 0:00:53]} (29... cxd4 $17 {Hoping for ...Nd5.} 30. f4 Nd5) 30. f4 $1 $11 {[%emt 0:00:19]} Red8 {[%emt 0:00:17]} 31. d5 {[%emt 0:00:58]} (31. f5 $11 gxf5 (31... Nxd4 32. Kf1 $11) 32. gxf5 Nxd4 (32... Nxf5 33. Be4 $16) 33. Kf1 (33. Rxc5 $2 Nf3+ 34. Bxf3 Rxd2 $19)) 31... Nxd5 $17 {[%emt 0:00:12]} 32. f5 $1 {[%emt 0:00:01]} gxf5 {[%emt 0:00:02]} 33. gxf5 {[%emt 0:00:00]} Nd4 {[%emt 0:00:01]} 34. Rxc5 {[%emt 0:00:01]} Nxe2+ {[%emt 0:00:24]} 35. Rxe2 {[%emt 0:00:01]} Nf4 {[%emt 0:00:01]} 36. Re4 {[%emt 0:00:09]} Rd1+ {[%emt 0:00:14]} 37. Kh2 {[%emt 0:00:01]} Nd3 {[%emt 0:01:11]} 38. Rc2 {[%emt 0:00:01]} Nxf2 {[%emt 0:00:09]} 39. Rxf2 {[%emt 0:00:00]} Bd4 {[%emt 0:00:01]} 40. Rfe2 {[%emt 0:00:06]} Bc5 {[%emt 0:00:28]} 41. h4 $2 {[%emt 0:00:02][%mdl 8192]} (41. Bf3 $15) 41... Rg8 $2 {[%emt 0:00:07]} ({Weaker is} 41... R8d3 42. Re1 $17) (41... Bd6+ $1 $19 {and Black stays clearly on top.} 42. Kh3 Rg8) 42. Re1 $17 {[%emt 0:00:02]} Bd6+ {[%emt 0:00:12]} 43. Kh1 {[%emt 0:00:01]} Rd2 {[%emt 0:00:08]} 44. R1e2 {[%emt 0:00:01]} Rd1+ {[%emt 0:00:01]} 45. Re1 {[%emt 0:00:00]} Rxe1+ {[%emt 0:00:01]} 46. Rxe1 {[%emt 0:00:01]} Kg7 {[%emt 0:00:01]} 47. Rd1 {[%emt 0:00:03]} Bg3 {[%emt 0:00:03]} 48. Rd4 {[%emt 0:00:01]} (48. Rd5 $11) 48... Kf6 $17 {[%emt 0:00:01]} 49. Bf3 {[%emt 0:00:01]} Rc8 {[%emt 0:00:03]} 50. Kg2 {[%emt 0:00:01]} Be5 {[%emt 0:00:01]} 51. Rc4 {[%emt 0:00:01]} (51. Rd7 $17) 51... Rxc4 $19 {[%emt 0:00:04]} 52. bxc4 {[%emt 0:00:00]} a4 {[%emt 0:00:03]} ({Don't take} 52... Kxf5 53. c5) 53. Be4 {[%emt 0:00:01]} Bd4 {[%emt 0:00:02]} 54. Bc2 {[%emt 0:00:01]} a3 {[%emt 0:00:03]} (54... b3 $1 $17 {[%cal Rb3c2]} 55. axb3 a3) 55. Kf3 {[%emt 0:00:01] [#]} Ke5 {[%emt 0:00:00]} (55... h5 $1 $17) 56. h5 {[%emt 0:00:02]} (56. Kg4 $5) 56... Bc5 {[%emt 0:00:02]} 57. Ke2 {[%emt 0:00:02]} (57. Kg4 $15) 57... Kd4 {[%emt 0:00:03]} (57... Kf4 $17 58. f6 Kg4) 58. Bb3 {[%emt 0:00:01]} (58. Kf3 $15) 58... Be7 {[%emt 0:00:02]} ({Better is} 58... Ke4 $17 59. Bc2+ Kf4) 59. c5 {[%emt 0:00:03]} Bxc5 {[%emt 0:00:02]} 60. Bxf7 {[%emt 0:00:01]} Ke5 {[%emt 0:00:00]} 61. Be6 {[%emt 0:00:01] [#]} b3 {[%emt 0:00:02]} ({Black should try} 61... Kf6 $1 $15) 62. Bxb3 $11 {[%emt 0:00:01]} Kxf5 {[%emt 0:00:00]} 63. Kd3 {[%emt 0:00:01]} Be7 {[%emt 0:00:02]} 64. Bd1 {[%emt 0:00:00]} Bf8 {[%emt 0:00:02]} 65. Kc4 {[%emt 0:00:01]} 1/2-1/2

[Event "CCT Chessable Masters D-II 2024"]
[Site "Online"]
[Date "2024.02.06"]
[Round "5"]
[White "LevonAronian"]
[Black "Keymer, Vincent"]
[Result "1/2-1/2"]
[ECO "C54"]
[WhiteElo "2758"]
[BlackElo "2743"]
[Annotator "TA"]
[PlyCount "53"]
[EventDate "2024.01.12"]
[EventType "k.o."]
[EventCountry "NET"]
[SourceTitle "playchess.com"]
[Source "ChessBase"]
[SourceQuality "1"]
[TimeControl "600+2"]

{[%evp 20,53,25,15,22,18,36,4,6,18,4,9,7,0,4,0,0,0,7,-21,0,0,-10,-14,-8,-8,-16,-12,-10,-9,0,0,0,-7,0,-12]} 1. e4 {[%emt 0:00:02]} e5 {[%emt 0:00:03]} 2. Nf3 {[%emt 0:00:02]} Nc6 {[%emt 0:00:00]} 3. Bc4 {[%emt 0:00:01]} Nf6 {[%emt 0:00:01]} 4. d3 {[%emt 0:00:01]} Bc5 {[%emt 0:00:00]} 5. O-O {[%emt 0:00:01]} a6 {[%emt 0:00:01]} 6. c3 {[%emt 0:00:02]} Ba7 {[%emt 0:00:01]} 7. Re1 {[%emt 0:00:03]} O-O {[%emt 0:00:01]} 8. h3 {[%emt 0:00:16]} d6 {[%emt 0:00:06]} 9. Bb3 {[%emt 0:00:01]} h6 {[%emt 0:00:06]} 10. Nbd2 {[%emt 0:00:02]} Be6 {[%emt 0:00:01]} 11. Nf1 {[%emt 0:00:02]} d5 {[%emt 0:00:01]} 12. exd5 {[%emt 0:00:02]} Nxd5 {[%emt 0:00:01]} 13. N1h2 {[%emt 0:00:01][%cal Oh2g4]} Qd6 {[%emt 0:00:17] The position is equal.} 14. Ng4 {[%emt 0:00:02]} Bxg4 {[%emt 0:00:01]} 15. hxg4 {[%emt 0:00:01]} Nf6 {[%emt 0:00:01]} 16. Nh4 {[%emt 0:00:14] Hoping for Nf5.} Rad8 {[%emt 0:00:04]} 17. Be3 {[%emt 0:02:43]} Bxe3 $1 {[%emt 0:00:03]} 18. Rxe3 {[%emt 0:00:02]} Nd5 {[%emt 0:00:16]} 19. Re4 {[%emt 0:01:23]} (19. Bxd5 {simplifies} Qxd5 20. a3 a5 21. Qc2) 19... g6 {[%emt 0:00:22]} 20. Qf3 {[%emt 0:01:25]} Kg7 {[%emt 0:00:25]} 21. Rae1 {[%emt 0:00:33]} (21. Qg3 {simplifies} Qd7 22. Bxd5 Qxd5 23. Re3) 21... Nf6 {[%emt 0:00:32]} 22. R4e3 {[%emt 0:00:01]} Qd7 {[%emt 0:00:13]} 23. Bd1 {[%emt 0:00:28]} Nd5 {[%emt 0:05:37]} 24. Re4 {[%emt 0:00:02]} Nf6 {[%emt 0:00:11]} 25. R4e3 {[%emt 0:00:01]} Nd5 {[%emt 0:00:02]} 26. Re4 {[%emt 0:00:02]} Nf6 {[%emt 0:00:00]} 27. R4e3 {[%emt 0:00:01] An uneventful encounter.   Weighted Error Value: White=0.06 (flawless) /Black=0.03 (flawless) .  Inaccurate:     	White=2     	---        OK:         	White=8     	Black=7      Best:        	White=2     	Black=1      Strong:       	---       	Black=1} 1/2-1/2

[Event "CCT Chessable Masters D-II 2024"]
[Site "Online"]
[Date "2024.02.06"]
[Round "5"]
[White "Keymer, Vincent"]
[Black "LevonAronian"]
[Result "1-0"]
[ECO "E61"]
[WhiteElo "2743"]
[BlackElo "2766"]
[Annotator "TA"]
[PlyCount "71"]
[EventDate "2024.01.12"]
[EventType "k.o."]
[EventCountry "NET"]
[SourceTitle "playchess.com"]
[Source "ChessBase"]
[SourceQuality "1"]
[TimeControl "600+2"]

{[%evp 9,71,22,30,-5,15,23,19,19,26,20,34,-10,71,62,62,68,68,61,72,41,78,86,177,170,276,273,286,301,283,256,342,358,375,375,366,257,306,306,448,386,403,370,369,331,544,544,792,773,2801,964,2955,2760,5277,1359,29993,29994,29994,29995,29996,29997,29997,29994,29994,29995]} 1. d4 {[%emt 0:00:02]} Nf6 {[%emt 0:00:03]} 2. c4 {[%emt 0:00:01]} g6 {[%emt 0:00:00]} 3. g3 {[%emt 0:00:01]} Bg7 {[%emt 0:00:02]} 4. Bg2 {[%emt 0:00:00]} O-O {[%emt 0:00:01]} 5. Nc3 {[%emt 0:00:01]} Nc6 {[%emt 0:00:01]} 6. f4 {[%emt 0:00:00]} d6 {[%emt 0:00:16]} 7. Nf3 {[%emt 0:00:02]} Na5 {[%emt 0:00:24]} 8. b3 {[%emt 0:00:05] The position is equal.} c5 {[%emt 0:00:01]} 9. Bb2 {[%emt 0:00:11]} Ng4 {[%emt 0:00:53]} 10. Qd2 {[%emt 0:00:04] Prevents Ne3.} Nc6 {[%emt 0:00:42]} (10... cxd4 $1 $11 11. Nxd4 e5) 11. d5 $16 {[%emt 0:00:48]} Nd4 {[%emt 0:00:03][%cal Og4e3]} 12. O-O {[%emt 0:01:41]} Bd7 {[%emt 0:00:02]} 13. h3 {[%emt 0:00:10]} Nh6 {[%emt 0:00:02]} 14. e4 {[%emt 0:00:19][%cal Be2e4,Be4e5][%mdl 32]} a6 {[%emt 0:00:37]} 15. g4 {[%emt 0:00:14] Hoping for g5. White stays focused until the end.} Kh8 {[%emt 0:00:12]} (15... Nxf3+ $16 16. Rxf3 (16. Bxf3 e5 $14) 16... Bd4+ 17. Kh2 f6) 16. e5 $18 {[%emt 0:00:09]} b5 {[%emt 0:01:06]} (16... Nxf3+ $142 17. Rxf3 b5) 17. Nxd4 {[%emt 0:00:44]} cxd4 {[%emt 0:00:03]} 18. Ne4 {[%emt 0:00:00]} (18. Qxd4 $6 bxc4 19. bxc4 f5 $18) 18... bxc4 {[%emt 0:00:14]} 19. bxc4 {[%emt 0:00:02]} (19. Bxd4 cxb3 20. axb3 Bb5 $18) 19... Rc8 {[%emt 0:00:59]} 20. Rac1 {[%emt 0:00:03]} (20. Bxd4 Rxc4 21. Rac1 dxe5 22. fxe5 (22. Rxc4 exd4 23. Rb4 f5 $16) 22... Bb5 $16) (20. Qxd4 f5) 20... Ng8 {[%emt 0:01:00]} 21. Bxd4 {[%emt 0:00:23]} f5 {[%emt 0:00:03]} 22. Ng5 {[%emt 0:00:58]} h6 {[%emt 0:00:18]} 23. e6 {[%emt 0:00:04]} hxg5 {[%emt 0:00:20]} (23... Be8 {was worth a try.} 24. Nf3 Bxd4+ 25. Qxd4+ (25. Nxd4 Qb6 $18) 25... Kh7) 24. Bxg7+ {[%emt 0:00:57]} ({Resist} 24. exd7 Qxd7 25. fxg5 e6 26. dxe6 (26. Bxg7+ Qxg7 27. gxf5 Rxf5 $18) 26... Qxe6 27. gxf5 Rxf5 $18) 24... Kxg7 {[%emt 0:00:01]} 25. Qd4+ {[%emt 0:00:00]} Kh7 {[%emt 0:00:01]} 26. fxg5 {[%emt 0:00:04][%cal Bf4g5,Bg5f6][%mdl 32]} Be8 $2 {[%emt 0:00:02]} (26... Bxe6 27. dxe6 Qa5) 27. Rf4 {[%emt 0:00:16] [#] aiming for gxf5.} Qa5 {[%emt 0:01:07][%cal Oa5c5]} 28. gxf5 {[%emt 0:00:19] Rh4+ would kill now.} gxf5 {[%emt 0:00:01]} 29. Kh1 {[%emt 0:00:08]} (29. Rh4+ $142 Kg6 30. Qh8 (30. Rh8 $2 Qc5 $19) 30... Kxg5 31. Rf1 Qc5+ 32. Kh2 Qxc4 33. Rxc4 Rxc4 34. Qg7+ Bg6 35. Qxf8) 29... Nf6 {[%emt 0:02:06]} 30. Rxf5 {[%emt 0:01:27]} Bg6 {[%emt 0:00:01]} 31. gxf6 {[%emt 0:00:01]} Bxf5 {[%emt 0:00:01]} 32. Qh4+ {[%emt 0:00:01] White mates.} Kg6 {[%emt 0:00:01]} 33. Be4 {[%emt 0:00:04][%cal Rc1g1]} Qc5 {[%emt 0:00:21]} 34. Qg4+ {[%emt 0:00:04]} Kh6 {[%emt 0:00:04]} 35. Bxf5 {[%emt 0:00:04][%csl Gf5][%cal Rg4g6]} Qxd5+ {[%emt 0:00:01]} 36. cxd5 {[%emt 0:00:04] Weighted Error Value: White=0.14 (very precise) /Black=0.52.  Mistake:       	---       	Black=5      Inaccurate:     	White=1     	Black=4      OK:         	White=12    	Black=5      Best:        	White=2     	Black=1} 1-0